bitfinex/quotes_BTCUSD_20241001
["timestamp","ask_amount","ask_price","bid_price","bid_amount"]
[1727794786651,5.01184577,62693.0,62692.0,0.4439668]
[1727794787570,5.01284577,62693.0,62692.0,0.4529668]
[1727794787813,5.01284577,62693.0,62692.0,0.4549668]
[1727794788048,5.01184577,62693.0,62692.0,0.4459668]
[1727794788287,5.01284577,62693.0,62692.0,0.4569668]
[1727794788511,5.01284577,62693.0,62692.0,0.4639668]
[1727794788512,5.01384577,62693.0,62692.0,0.4639668]
[1727794789430,5.01384577,62693.0,62692.0,0.4359668]
[1727794789651,5.28114577,62693.0,62692.0,0.4359668]
[1727794790376,5.28014577,62693.0,62692.0,0.4249668]
[1727794790853,5.27914577,62693.0,62692.0,0.4159668]
[1727794791130,5.28014577,62693.0,62692.0,0.4219668]
[1727794791376,5.28114577,62693.0,62692.0,0.4289668]
[1727794791587,5.28014577,62693.0,62692.0,0.4219668]
[1727794791794,5.28014577,62693.0,62692.0,0.4299668]
[1727794791795,5.28114577,62693.0,62692.0,0.4299668]
[1727794792695,5.28014577,62693.0,62692.0,0.4219668]
[1727794792902,5.01284577,62693.0,62692.0,0.4239668]
[1727794793107,5.01184577,62693.0,62692.0,0.4159668]
[1727794793316,5.01284577,62693.0,62692.0,0.4239668]
[1727794793979,5.01184577,62693.0,62692.0,0.4159668]
[1727794794190,5.01284577,62693.0,62692.0,0.4239668]
[1727794794875,5.01284577,62693.0,62692.0,0.4159668]
[1727794794876,5.01184577,62693.0,62692.0,0.4159668]
[1727794795739,5.01284577,62693.0,62692.0,0.4229668]
[1727794796213,5.20964577,62693.0,62692.0,0.4229668]
[1727794796435,5.20864577,62693.0,62692.0,0.4159668]
[1727794796658,5.20964577,62693.0,62692.0,0.4249668]
[1727794797114,5.20964577,62693.0,62692.0,0.007]
[1727794797351,5.28844577,62693.0,62692.0,0.007]
[1727794797644,5.48909597,62693.0,62692.0,0.013]
[1727794798562,5.28844577,62693.0,62692.0,0.265509]
[1727794798783,5.28844577,62693.0,62692.0,0.272509]
[1727794799001,5.28944577,62693.0,62692.0,0.272509]
[1727794799219,5.28944577,62693.0,62692.0,0.265509]
[1727794799437,5.28944577,62693.0,62692.0,0.266509]
[1727794799889,5.28844577,62693.0,62692.0,0.26133]
[1727794800112,5.28844577,62693.0,62692.0,0.4247878]
[1727794800338,5.28944577,62693.0,62692.0,0.4247878]
[1727794800594,5.28544577,62693.0,62692.0,0.4247878]
[1727794801068,5.28544577,62693.0,62692.0,0.008821]
[1727794801069,5.48409597,62693.0,62692.0,0.008821]
[1727794801545,5.48509597,62693.0,62692.0,0.015821]
[1727794802009,5.49819729,62693.0,62692.0,0.015821]
[1727794802253,5.48819729,62693.0,62692.0,0.015821]
[1727794802509,5.47509597,62693.0,62692.0,0.015821]
[1727794802754,5.48819574,62693.0,62692.0,0.015821]
[1727794802986,5.28754554,62693.0,62692.0,0.27533]
[1727794803219,5.28554554,62693.0,62692.0,0.26033]
[1727794803688,5.28754554,62693.0,62692.0,0.101821]
[1727794803935,5.48719574,62693.0,62692.0,0.000821]
[1727794804268,5.48519574,62693.0,62692.0,0.000821]
[1727794804757,5.48519574,62693.0,62692.0,0.005821]
[1727794804758,5.28554554,62693.0,62692.0,0.005821]
[1727794805036,5.28554554,62693.0,62692.0,0.16533]
[1727794805308,5.28554554,62693.0,62692.0,0.16033]
[1727794805553,5.28554554,62693.0,62692.0,0.26233]
[1727794806089,5.08874554,62693.0,62692.0,0.4167878]
[1727794806344,5.02311509,62693.0,62692.0,0.4167878]
[1727794806625,5.03837406,62693.0,62692.0,0.4167878]
[1727794806864,5.02411509,62693.0,62692.0,0.4167878]
[1727794807094,5.02511509,62693.0,62692.0,0.42877301]
[1727794807326,5.02411509,62693.0,62692.0,0.42877301]
[1727794807781,5.02411509,62693.0,62692.0,0.43177301]
[1727794808009,5.01101532,62693.0,62692.0,0.43177301]
[1727794808748,5.01101532,62693.0,62692.0,0.006821]
[1727794808979,5.02751516,62693.0,62692.0,0.006821]
[1727794809454,5.04083283,62693.0,62692.0,0.006821]
[1727794809697,4.97433299,62693.0,62692.0,0.106821]
[1727794809928,5.24143299,62693.0,62692.0,0.100821]
[1727794810181,5.24143299,62693.0,62692.0,0.000821]
[1727794810397,5.24143299,62693.0,62692.0,0.002821]
[1727794810625,5.24143299,62693.0,62692.0,0.001821]
[1727794810626,5.25803613,62693.0,62692.0,0.001821]
[1727794810868,5.25803613,62693.0,62692.0,0.000821]
[1727794811329,5.25903613,62693.0,62692.0,0.000821]
[1727794811567,5.25903071,62693.0,62688.0,0.000821]
[1727794811841,0.2802502,62689.0,62688.0,0.000821]
[1727794812061,0.09391767,62689.0,62688.0,0.000821]
[1727794812747,0.0806,62689.0,62688.0,0.000821]
[1727794812998,0.09406513,62689.0,62688.0,0.000821]
[1727794813461,0.01346513,62689.0,62688.0,0.616449]
[1727794813680,4.94684577,62693.0,62692.0,0.259509]
[1727794813681,4.95484577,62693.0,62692.0,0.259509]
[1727794813907,4.96820201,62693.0,62692.0,0.259509]
[1727794814131,4.96016737,62693.0,62692.0,0.1]
[1727794814836,4.96016737,62693.0,62689.0,0.1]
[1727794815327,0.0133216,62692.0,62689.0,0.2564578]
[1727794816056,0.1956,62691.0,62689.0,0.2564578]
[1727794816298,0.1956,62691.0,62688.0,0.01280354]
[1727794816299,0.001,62689.0,62688.0,0.008821]
[1727794816542,0.2139718,62689.0,62688.0,0.008821]
[1727794817334,0.2139718,62689.0,62688.0,0.000821]
[1727794817560,0.2129718,62689.0,62688.0,0.000821]
[1727794818041,0.0133216,62689.0,62688.0,0.000821]
[1727794819459,0.0143216,62689.0,62688.0,0.000821]
[1727794819916,0.0143216,62689.0,62688.0,0.2572788]
[1727794820136,0.0143216,62689.0,62688.0,0.4167988]
[1727794820381,0.01134958,62689.0,62688.0,0.4167988]
[1727794820601,0.01034958,62689.0,62688.0,0.42845292]
[1727794820830,4.94684577,62693.0,62688.0,0.26893292]
[1727794821109,4.94684577,62693.0,62692.0,0.259509]
[1727794821338,4.94684577,62693.0,62692.0,0.4209668]
[1727794822992,4.94684577,62693.0,62692.0,0.4559668]
[1727794823221,4.94684577,62693.0,62692.0,0.52761098]
[1727794823456,4.92232577,62693.0,62692.0,0.52761098]
[1727794823687,4.71781306,62693.0,62692.0,0.4959368]
[1727794824164,4.71681306,62693.0,62692.0,0.58343871]
[1727794824399,4.44542413,62693.0,62692.0,0.70322259]
[1727794824696,4.44642413,62693.0,62692.0,0.6507199]
[1727794824924,4.44742413,62693.0,62692.0,1.45844587]
[1727794825612,4.42742892,62693.0,62692.0,1.54789458]
[1727794825836,4.42742892,62693.0,62692.0,1.42848879]
[1727794826109,4.42742892,62693.0,62692.0,1.43448879]
[1727794826110,4.42842892,62693.0,62692.0,1.43448879]
[1727794826331,4.42742892,62693.0,62692.0,1.42648879]
[1727794826552,4.42742892,62693.0,62692.0,1.32504008]
[1727794826553,4.38384267,62693.0,62692.0,1.32504008]
[1727794826773,4.38484267,62693.0,62692.0,1.33304008]
[1727794826992,4.38584267,62693.0,62692.0,1.33904008]
[1727794827231,4.37432752,62693.0,62692.0,1.33104008]
[1727794827675,4.37532752,62693.0,62692.0,1.33904008]
[1727794827913,4.37432752,62693.0,62692.0,1.33104008]
[1727794828141,4.37332752,62693.0,62692.0,1.32504008]
[1727794828377,4.37432752,62693.0,62692.0,1.33304008]
[1727794828627,4.37532752,62693.0,62692.0,1.33904008]
[1727794828885,4.37532752,62693.0,62692.0,0.6949668]
[1727794829119,4.37432752,62693.0,62692.0,0.6889668]
[1727794829342,4.37432752,62693.0,62692.0,0.6839668]
[1727794829575,4.37432752,62693.0,62692.0,0.6769668]
[1727794830072,4.37432752,62693.0,62692.0,0.6789668]
[1727794830312,4.37432752,62693.0,62692.0,0.6659668]
[1727794830564,4.37432752,62693.0,62692.0,0.3159668]
[1727794830565,4.37332752,62693.0,62692.0,0.3159668]
[1727794830819,4.37432752,62693.0,62692.0,0.3239668]
[1727794831300,4.37432752,62693.0,62692.0,0.4239668]
[1727794831977,4.37532752,62693.0,62692.0,0.4289668]
[1727794832457,4.37432752,62693.0,62692.0,0.4209668]
[1727794832697,4.37432752,62693.0,62692.0,0.7989668]
[1727794832948,4.37532752,62693.0,62692.0,0.8049668]
[1727794833177,4.37332752,62693.0,62692.0,0.7939668]
[1727794833411,4.37432752,62693.0,62692.0,0.7999668]
[1727794833673,4.37432752,62693.0,62692.0,0.7979668]
[1727794834134,4.37412552,62693.0,62692.0,0.4199668]
[1727794834368,4.37512552,62693.0,62692.0,0.4259668]
[1727794835030,4.37412552,62693.0,62692.0,0.4219668]
[1727794835276,4.64452552,62693.0,62692.0,0.006]
[1727794835520,4.64552552,62693.0,62692.0,0.270509]
[1727794835739,4.64552552,62693.0,62692.0,0.264509]
[1727794835740,4.64452552,62693.0,62692.0,0.264509]
[1727794835965,4.64352552,62693.0,62692.0,0.4159668]
[1727794836237,4.64552552,62693.0,62692.0,0.4269668]
[1727794836476,4.64552552,62693.0,62692.0,0.4209668]
[1727794836477,4.64452552,62693.0,62692.0,0.4209668]
[1727794836713,4.37312552,62693.0,62692.0,0.4209668]
[1727794836944,4.37412552,62693.0,62692.0,0.4269668]
[1727794837197,4.37312552,62693.0,62692.0,0.4209668]
[1727794837420,4.37412552,62693.0,62692.0,0.4269668]
[1727794837640,4.37412552,62693.0,62692.0,0.5236688]
[1727794838102,4.37412552,62693.0,62692.0,0.4277888]
[1727794838332,4.37512552,62693.0,62692.0,0.4277888]
[1727794838813,4.56502552,62693.0,62692.0,0.266331]
[1727794839038,4.84187572,62693.0,62692.0,0.006822]
[1727794839258,4.85505394,62693.0,62692.0,0.165331]
[1727794839474,4.65540374,62693.0,62692.0,0.165331]
[1727794839698,4.65640374,62693.0,62692.0,0.011822]
[1727794839917,4.65540374,62693.0,62692.0,0.005822]
[1727794840437,4.65540374,62693.0,62692.0,0.006822]
[1727794840662,4.65440374,62693.0,62692.0,0.000822]
[1727794841105,4.65440374,62693.0,62692.0,0.100822]
[1727794841544,4.65440374,62693.0,62692.0,0.101822]
[1727794841768,4.65440374,62693.0,62688.0,0.000821]
[1727794841990,0.1996502,62689.0,62688.0,0.160338]
[1727794842442,0.21285583,62689.0,62688.0,0.160338]
[1727794842715,0.01320563,62689.0,62688.0,0.160338]
[1727794843154,0.01320563,62689.0,62688.0,0.000821]
[1727794843376,0.01320563,62689.0,62688.0,0.160341]
[1727794843805,0.01320563,62689.0,62688.0,0.260341]
[1727794844475,0.01320563,62689.0,62688.0,0.264341]
[1727794844701,0.01320563,62689.0,62688.0,0.4207988]
[1727794844929,4.64122552,62693.0,62692.0,0.259509]
[1727794846080,4.45032552,62693.0,62692.0,0.4159668]
[1727794846306,4.37312552,62693.0,62692.0,0.5838168]
[1727794846530,4.21362052,62693.0,62692.0,0.5838168]
[1727794846799,4.21362052,62693.0,62692.0,0.9338168]
[1727794847020,4.21362052,62693.0,62692.0,0.9348168]
[1727794847239,4.21362052,62693.0,62692.0,0.98251084]
[1727794847455,4.21362052,62693.0,62692.0,0.88863084]
[1727794847677,4.21362052,62693.0,62692.0,0.8409368]
[1727794847919,4.21362052,62693.0,62692.0,0.8379368]
[1727794848200,4.21462052,62693.0,62692.0,0.4539668]
[1727794848483,4.21462052,62693.0,62692.0,0.4259668]
[1727794848771,4.21462052,62693.0,62692.0,0.4209668]
[1727794849341,4.21462052,62693.0,62692.0,0.3209668]
[1727794849774,4.21462052,62693.0,62692.0,0.3159668]
[1727794849775,4.21362052,62693.0,62692.0,0.3159668]
[1727794850028,4.21362052,62693.0,62692.0,2.3159668]
[1727794850269,4.21362052,62693.0,62692.0,2.3297888]
[1727794850270,4.21562052,62693.0,62692.0,2.3297888]
[1727794850516,4.41302052,62693.0,62692.0,2.3297888]
[1727794851005,4.41102052,62693.0,62692.0,2.3167888]
[1727794851261,4.49342052,62693.0,62692.0,2.160331]
[1727794851504,4.49442052,62693.0,62692.0,2.265331]
[1727794851737,4.49542052,62693.0,62692.0,2.272331]
[1727794852482,4.50860945,62693.0,62692.0,2.272331]
[1727794852711,4.49542052,62693.0,62692.0,2.272331]
[1727794852947,4.50859082,62693.0,62692.0,2.112822]
[1727794853205,4.66709782,62693.0,62692.0,1.66077173]
[1727794853433,4.66709782,62693.0,62692.0,1.46077173]
[1727794853663,4.66709782,62693.0,62692.0,1.45877173]
[1727794854121,4.66609782,62693.0,62692.0,1.45377173]
[1727794854348,4.67309782,62693.0,62692.0,1.45977173]
[1727794854604,4.65992752,62693.0,62692.0,1.45977173]
[1727794854822,4.66609009,62693.0,62692.0,1.45377173]
[1727794855269,4.67409009,62693.0,62692.0,1.45477173]
[1727794855500,4.68309009,62693.0,62692.0,1.45577173]
[1727794856696,4.67509009,62693.0,62692.0,1.45477173]
[1727794856915,4.68309009,62693.0,62692.0,1.45577173]
[1727794857619,4.68309009,62693.0,62692.0,1.39179737]
[1727794857866,4.68309009,62693.0,62688.0,0.000821]
[1727794857867,0.159517,62689.0,62688.0,0.000821]
[1727794858104,0.159517,62689.0,62657.0,0.005]
[1727794858105,0.29957913,62663.0,62660.0,0.15959]
[1727794858377,0.29957913,62663.0,62656.0,0.319199]
[1727794858378,0.29957913,62663.0,62662.0,0.23919058]
[1727794858609,0.29957913,62663.0,62662.0,0.1564578]
[1727794858834,0.31280476,62663.0,62662.0,0.1564578]
[1727794859337,0.01322563,62663.0,62662.0,0.3160438]
[1727794859597,0.0009846,62673.0,62672.0,0.15956]
[1727794859819,0.0009846,62673.0,62672.0,0.3160178]
[1727794860045,0.23919058,62677.0,62676.0,0.15955]
[1727794860276,0.23919058,62677.0,62676.0,0.4160078]
[1727794860536,0.0812,62684.0,62681.0,0.159536]
[1727794860797,0.23919058,62684.0,62681.0,0.1]
[1727794861022,0.23919058,62684.0,62676.0,0.4755568]
[1727794861023,0.23919058,62684.0,62683.0,0.259532]
[1727794861265,4.37312952,62693.0,62684.0,0.259528]
[1727794861509,4.21362052,62693.0,62687.0,0.1]
[1727794861748,0.01318648,62691.0,62690.0,0.159513]
[1727794861987,0.01318648,62691.0,62689.0,0.1]
[1727794862284,4.21362052,62693.0,62691.0,0.1]
[1727794862519,4.21362052,62693.0,62692.0,0.259509]
[1727794862765,4.21362052,62693.0,62692.0,0.4159668]
[1727794863679,4.21462052,62693.0,62692.0,0.4159668]
[1727794863912,4.21362052,62693.0,62692.0,0.4159668]
[1727794864642,4.21462052,62693.0,62692.0,0.4159668]
[1727794865325,4.21562052,62693.0,62692.0,0.4159668]
[1727794865553,4.21562052,62693.0,62692.0,0.4439668]
[1727794865778,4.21562052,62693.0,62692.0,0.45617106]
[1727794866039,4.21562052,62693.0,62692.0,0.42817106]
[1727794866288,4.21462052,62693.0,62692.0,0.42817106]
[1727794866521,4.21562052,62693.0,62692.0,0.259509]
[1727794866744,4.21462052,62693.0,62692.0,0.259509]
[1727794867187,4.21562052,62693.0,62692.0,0.259509]
[1727794867423,4.21462052,62693.0,62692.0,0.259509]
[1727794867873,4.21562052,62693.0,62692.0,0.27758093]
[1727794868114,4.21562052,62693.0,62692.0,0.006]
[1727794868340,4.22779143,62693.0,62687.0,0.159521]
[1727794868623,0.29957913,62686.0,62672.0,0.159559]
[1727794868860,0.01319661,62685.0,62684.0,0.15953]
[1727794869327,0.01319661,62685.0,62674.0,0.23919058]
[1727794869328,4.21362052,62693.0,62692.0,0.159509]
[1727794869568,0.23919058,62692.0,62691.0,0.159512]
[1727794869802,4.22681352,62693.0,62691.0,0.159512]
[1727794870028,4.22681352,62693.0,62683.0,0.319063]
[1727794870029,0.25238358,62692.0,62684.0,0.1]
[1727794870264,0.013193,62691.0,62687.0,0.1]
[1727794870501,0.013193,62691.0,62687.0,0.261521]
[1727794870735,0.15952,62688.0,62687.0,0.002]
[1727794870967,0.172713,62688.0,62687.0,0.002]
[1727794871692,0.15952,62688.0,62680.0,0.159538]
[1727794871922,0.15952,62688.0,62676.0,0.319099]
[1727794871923,0.01319317,62688.0,62676.0,0.319099]
[1727794872154,0.01319317,62688.0,62679.0,0.159541]
[1727794872155,0.159522,62687.0,62679.0,0.159541]
[1727794872422,0.01319317,62688.0,62678.0,0.1]
[1727794872666,0.01719317,62688.0,62687.0,0.159522]
[1727794872912,0.01719317,62688.0,62687.0,0.259522]
[1727794873136,0.01319317,62688.0,62687.0,0.4159798]
[1727794873377,0.049948,62692.0,62691.0,0.259512]
[1727794873608,0.28913858,62692.0,62691.0,0.259512]
[1727794873834,0.049948,62692.0,62691.0,0.259512]
[1727794874065,0.049948,62692.0,62691.0,0.4159698]
[1727794874525,0.049948,62692.0,62691.0,0.84790553]
[1727794874761,0.049948,62692.0,62691.0,0.80613645]
[1727794875018,0.049948,62692.0,62691.0,0.80813645]
[1727794875233,0.049948,62692.0,62691.0,0.80613645]
[1727794875730,0.049948,62692.0,62691.0,0.85011645]
[1727794875959,0.28913858,62692.0,62691.0,1.03021645]
[1727794876181,0.28913858,62692.0,62691.0,1.00523645]
[1727794876182,0.050948,62692.0,62691.0,1.00523645]
[1727794876407,0.050948,62692.0,62691.0,0.99323645]
[1727794876408,0.049948,62692.0,62691.0,0.99323645]
[1727794876637,0.049948,62692.0,62691.0,0.61023645]
[1727794876638,0.28913858,62692.0,62691.0,0.61023645]
[1727794876861,0.050948,62692.0,62691.0,0.61723645]
[1727794877097,0.050948,62692.0,62691.0,0.61023645]
[1727794877351,0.051948,62692.0,62691.0,0.43513645]
[1727794877830,0.050948,62692.0,62691.0,0.42813645]
[1727794878084,0.051948,62692.0,62691.0,0.166512]
[1727794878551,0.051948,62692.0,62691.0,0.007]
[1727794878552,0.29113858,62692.0,62691.0,0.007]
[1727794878786,0.06618721,62692.0,62691.0,0.173512]
[1727794879012,0.06418721,62692.0,62691.0,0.166512]
[1727794879230,0.06418721,62692.0,62691.0,0.007]
[1727794879472,0.06418721,62692.0,62691.0,0.166512]
[1727794879703,0.06418721,62692.0,62691.0,0.4229698]
[1727794879933,0.051948,62692.0,62691.0,0.47073888]
[1727794880178,0.051948,62692.0,62691.0,0.5248498]
[1727794880398,0.051948,62692.0,62691.0,0.5568498]
[1727794880399,0.050948,62692.0,62691.0,0.5568498]
[1727794880632,0.050948,62692.0,62691.0,0.5588498]
[1727794880863,4.21362052,62693.0,62692.0,0.933689]
[1727794880864,3.69461052,62693.0,62692.0,0.933689]
[1727794881099,3.49461052,62693.0,62692.0,1.1221268]
[1727794881351,3.48583847,62693.0,62692.0,1.1221268]
[1727794881593,3.48583847,62693.0,62692.0,1.1697891]
[1727794881838,9.8e-07,62703.0,62702.0,0.867]
[1727794882075,0.01396212,62712.0,62711.0,0.927321]
[1727794882308,0.00917496,62712.0,62711.0,1.43099172]
[1727794882558,5.93e-06,62723.0,62721.0,0.231416]
[1727794882802,0.13730451,62726.0,62725.0,1.181406]
[1727794883033,0.22943047,62734.0,62733.0,0.367]
[1727794883287,0.18891869,62734.0,62733.0,1.10544193]
[1727794883532,0.0004,62739.0,62737.0,0.299395]
[1727794883783,0.0026405,62746.0,62744.0,0.015]
[1727794884036,0.0107055,62745.0,62744.0,0.95059949]
[1727794884285,0.001644,62746.0,62745.0,0.831355]
[1727794884514,0.24083458,62754.0,62751.0,0.64936]
[1727794884742,0.24083458,62754.0,62751.0,0.8058178]
[1727794884967,0.46478469,62753.0,62751.0,0.4158178]
[1727794885198,0.001644,62754.0,62751.0,0.4158178]
[1727794885707,0.001644,62754.0,62751.0,0.8038178]
[1727794885938,0.001644,62754.0,62751.0,0.8058178]
[1727794886843,0.002644,62752.0,62751.0,0.8188178]
[1727794887370,0.002644,62752.0,62751.0,0.7978178]
[1727794887602,0.003644,62752.0,62751.0,0.8068178]
[1727794887831,0.002644,62752.0,62751.0,0.7888178]
[1727794888074,0.003644,62752.0,62751.0,0.8008178]
[1727794888518,0.002644,62752.0,62751.0,0.7888178]
[1727794888970,0.003644,62752.0,62751.0,0.8008178]
[1727794889667,0.004644,62752.0,62751.0,0.8138178]
[1727794889903,0.002644,62752.0,62751.0,0.8008178]
[1727794890152,0.000822,62756.0,62755.0,0.159349]
[1727794890391,0.0004,62759.0,62758.0,0.556322]
[1727794890633,0.0804,62779.0,62763.0,0.017]
[1727794890861,0.0004,62779.0,62778.0,0.259291]
[1727794891097,0.0013864,62779.0,62778.0,0.4157488]
[1727794891321,0.0004,62779.0,62778.0,0.4157488]
[1727794891787,0.0004,62779.0,62778.0,0.42793804]
[1727794892017,0.0004,62779.0,62778.0,0.4157488]
[1727794892476,0.266,62779.0,62778.0,0.012]
[1727794892692,0.266,62779.0,62778.0,0.271291]
[1727794892911,0.266,62779.0,62778.0,0.112]
[1727794893185,0.266,62779.0,62778.0,0.4277488]
[1727794893435,0.266,62779.0,62778.0,0.114]
[1727794893661,0.266,62779.0,62778.0,0.014]
[1727794893891,0.266,62779.0,62768.0,0.318633]
[1727794894140,0.266,62779.0,62774.0,0.23919058]
[1727794894416,0.266,62779.0,62767.0,0.23919058]
[1727794894417,0.318584,62778.0,62767.0,0.23919058]
[1727794894654,0.46478469,62775.0,62768.0,0.23919058]
[1727794894916,0.266,62779.0,62757.0,0.23919058]
[1727794894917,0.46478469,62769.0,62757.0,0.23919058]
[1727794895147,0.26139467,62774.0,62757.0,0.23919058]
[1727794895148,0.46478469,62763.0,62757.0,0.23919058]
[1727794895374,0.08,62772.0,62760.0,0.159335]
[1727794895375,0.19,62762.0,62760.0,0.159335]
[1727794895608,0.19,62762.0,62761.0,0.159334]
[1727794896591,0.19,62762.0,62761.0,0.3157918]
[1727794896815,0.19,62762.0,62761.0,0.160334]
[1727794897064,0.19,62762.0,62761.0,0.260334]
[1727794897302,0.19,62762.0,62761.0,0.259334]
[1727794897535,0.19,62762.0,62761.0,0.355214]
[1727794897760,0.19,62762.0,62761.0,0.261334]
[1727794898008,0.19,62762.0,62761.0,0.259334]
[1727794898512,0.191,62762.0,62761.0,0.259334]
[1727794899018,0.19,62762.0,62761.0,0.1]
[1727794899286,0.0826,62755.0,62748.0,0.1]
[1727794899616,0.24195,62755.0,62752.0,0.23919058]
[1727794899807,0.24195,62755.0,62748.0,0.1]
[1727794899808,0.159354,62753.0,62748.0,0.1]
[1727794900060,0.0826,62755.0,62747.0,0.478104]
[1727794900330,0.0826,62755.0,62748.0,0.159366]
[1727794900584,0.0826,62755.0,62747.0,0.1]
[1727794900873,0.0826,62755.0,62751.0,0.1]
[1727794901074,0.1873,62748.0,62738.0,0.1564578]
[1727794901304,0.1873,62748.0,62725.0,0.04357908]
[1727794901305,0.46478469,62745.0,62739.0,0.23919058]
[1727794901539,0.1873,62748.0,62739.0,0.23919058]
[1727794901772,0.1873,62748.0,62747.0,0.15937]
[1727794902285,0.1873,62748.0,62745.0,0.159374]
[1727794902522,0.1873,62748.0,62745.0,0.1]
[1727794902798,0.1873,62748.0,62736.0,0.318791]
[1727794902799,0.346667,62748.0,62747.0,0.001]
[1727794903054,0.0753,62741.0,62733.0,0.318808]
[1727794903346,0.0753,62741.0,62709.0,0.318928]
[1727794903347,0.46478469,62737.0,62724.0,0.55804458]
[1727794903583,0.159415,62730.0,62725.0,0.159425]
[1727794903816,0.0753,62741.0,62724.0,0.23919058]
[1727794903817,0.004,62748.0,62726.0,0.005]
[1727794904057,0.23919058,62740.0,62739.0,0.15939]
[1727794904289,0.1842,62746.0,62745.0,0.159375]
[1727794905015,0.1842,62746.0,62742.0,0.318762]
[1727794905249,0.1842,62746.0,62745.0,0.259375]
[1727794906661,0.1842,62746.0,62745.0,0.1]
[1727794906890,0.1842,62746.0,62735.0,0.3188]
[1727794906891,0.0779,62745.0,62725.0,0.001]
[1727794907122,0.1897,62737.0,62732.0,0.23919058]
[1727794907405,0.1897,62737.0,62725.0,0.159425]
[1727794907406,0.46478469,62731.0,62725.0,0.159425]
[1727794907632,0.0779,62730.0,62729.0,0.159415]
[1727794908095,0.0779,62730.0,62719.0,0.318882]
[1727794908352,0.23919058,62736.0,62692.0,0.23919058]
[1727794908353,0.2631,62719.0,62692.0,0.23919058]
[1727794908626,0.1614578,62728.0,62706.0,0.23919058]
[1727794908627,0.2631,62718.0,62706.0,0.23919058]
[1727794908883,0.23919058,62727.0,62692.0,0.23919058]
[1727794908884,0.2664,62705.0,62692.0,0.23919058]
[1727794909110,0.2664,62705.0,62700.0,0.23919058]
[1727794909334,0.29931549,62701.0,62693.0,0.319011]
[1727794909561,0.29931549,62701.0,62692.0,0.23919058]
[1727794909794,0.73216272,62705.0,62698.0,0.159494]
[1727794910021,0.23919058,62703.0,62696.0,0.318996]
[1727794910273,0.73216272,62705.0,62697.0,0.1]
[1727794910504,0.73716272,62705.0,62697.0,0.1]
[1727794910721,0.23919058,62704.0,62697.0,0.159497]
[1727794910943,0.73716272,62705.0,62698.0,0.259494]
[1727794911174,0.73716272,62705.0,62686.0,0.319049]
[1727794911175,0.0759,62705.0,62704.0,0.159479]
[1727794911667,0.005,62705.0,62700.0,0.159488]
[1727794911905,0.46576272,62701.0,62696.0,0.001]
[1727794912168,0.159497,62697.0,62696.0,0.001]
[1727794912419,0.159497,62697.0,62689.0,0.23919058]
[1727794912420,0.46576272,62690.0,62689.0,0.23919058]
[1727794912651,0.62222052,62690.0,62689.0,0.23919058]
[1727794912885,0.62222052,62690.0,62688.0,0.001642]
[1727794912886,0.68444257,62690.0,62688.0,0.001642]
[1727794913123,0.1564578,62689.0,62688.0,0.001642]
[1727794913824,0.39564838,62689.0,62688.0,0.001642]
[1727794914058,0.39564838,62689.0,62682.0,0.001642]
[1727794914059,0.1564578,62689.0,62682.0,0.001642]
[1727794914564,0.2725,62688.0,62682.0,0.001642]
[1727794914804,0.1564578,62687.0,62682.0,0.001642]
[1727794915559,0.3159808,62687.0,62682.0,0.001642]
[1727794915791,0.159532,62683.0,62682.0,0.001642]
[1727794916042,0.78175252,62683.0,62682.0,0.001642]
[1727794916513,0.46576272,62672.0,62671.0,0.23919058]
[1727794916753,0.65996272,62672.0,62671.0,0.23919058]
[1727794916973,0.65996272,62672.0,62662.0,0.000822]
[1727794916974,0.73896272,62672.0,62667.0,0.159572]
[1727794917201,0.1564578,62671.0,62664.0,0.23919058]
[1727794917431,0.1564578,62671.0,62667.0,0.159571]
[1727794917653,0.1564578,62671.0,62668.0,0.159569]
[1727794917876,0.1564578,62671.0,62662.0,0.000822]
[1727794918118,0.1564578,62671.0,62667.0,0.159572]
[1727794918338,0.23919058,62670.0,62666.0,0.319148]
[1727794918560,0.1564578,62669.0,62668.0,0.159569]
[1727794918779,0.73896272,62672.0,62670.0,0.159565]
[1727794918780,0.014,62671.0,62670.0,0.159565]
[1727794919007,0.1704578,62671.0,62670.0,0.159565]
[1727794919220,0.1564578,62671.0,62670.0,0.159565]
[1727794919443,0.1564578,62671.0,62667.0,0.001]
[1727794919444,0.1724578,62671.0,62667.0,0.001]
[1727794919659,0.016,62671.0,62670.0,0.159565]
[1727794920587,0.009,62671.0,62667.0,0.001]
[1727794920825,0.009,62671.0,62668.0,0.319142]
[1727794921065,0.022,62671.0,62667.0,0.001]
[1727794921320,0.1564578,62670.0,62662.0,0.160407]
[1727794921547,0.159583,62663.0,62662.0,0.000822]
[1727794921768,0.1564578,62663.0,62659.0,0.000822]
[1727794922013,0.002,62656.0,62655.0,0.01300851]
[1727794922241,0.159627,62646.0,62644.0,0.000822]
[1727794922474,0.005,62653.0,62644.0,0.000822]
[1727794922475,0.62539172,62645.0,62644.0,0.000822]
[1727794922754,0.62539172,62645.0,62625.0,0.320179]
[1727794922755,0.005,62643.0,62625.0,0.320179]
[1727794922986,0.46576272,62632.0,62625.0,0.000822]
[1727794923218,0.73566272,62632.0,62625.0,0.000822]
[1727794923703,0.73566272,62632.0,62627.0,0.159673]
[1727794923926,0.73566272,62632.0,62625.0,0.000822]
[1727794924151,0.73566272,62632.0,62625.0,0.160501]
[1727794924368,0.73566272,62632.0,62625.0,0.000822]
[1727794924600,0.89212052,62632.0,62625.0,0.000822]
[1727794924818,0.3181228,62631.0,62625.0,0.000822]
[1727794925039,0.1564578,62631.0,62625.0,0.1605]
[1727794925278,0.1564578,62631.0,62625.0,0.000822]
[1727794925726,0.1564578,62631.0,62625.0,0.1605]
[1727794925986,0.2909,62632.0,62626.0,0.320993]
[1727794926207,0.2909,62632.0,62630.0,0.160487]
[1727794926429,0.1564578,62631.0,62630.0,0.000822]
[1727794926684,0.3161228,62631.0,62630.0,0.000822]
[1727794926951,0.47256958,62631.0,62630.0,0.000822]
[1727794927197,0.3161228,62631.0,62630.0,0.000822]
[1727794927927,0.1564578,62631.0,62630.0,0.000822]
[1727794928406,0.3281228,62631.0,62630.0,0.000822]
[1727794928650,0.80588552,62631.0,62630.0,0.000822]
[1727794929126,0.80588552,62631.0,62626.0,0.001642]
[1727794929127,0.159667,62630.0,62626.0,0.001642]
[1727794929342,0.3161248,62630.0,62626.0,0.001642]